bitfinex/quotes_SOLUSD_20240916
["timestamp","ask_amount","ask_price","bid_price","bid_amount"]
[1726456422818,15.804,130.45,130.39,35.82764532]
[1726456423045,15.804,130.45,130.4,20.0]
[1726456423416,15.804,130.45,130.41,23.776884]
[1726456423624,15.804,130.45,130.4,23.776884]
[1726456423827,15.804,130.45,130.4,39.60452932]
[1726456424028,15.804,130.45,130.41,15.82764532]
[1726456424234,15.804,130.45,130.4,39.60452932]
[1726456427645,15.804,130.45,130.41,15.82764532]
[1726456427938,6.6575,130.46,130.43,15.82764532]
[1726456428149,15.9497,130.48,130.44,39.60452932]
[1726456428647,15.9497,130.48,130.44,23.776884]
[1726456430141,15.9497,130.48,130.43,43.776884]
[1726456430589,15.9497,130.48,130.43,59.60452932]
[1726456430922,6.3618,130.49,130.46,23.776884]
[1726456431240,6.3618,130.49,130.46,39.60452932]
[1726456432152,0.2510931,130.52,130.48,39.60452932]
[1726456434645,0.2510931,130.52,130.47,23.776884]
[1726456434848,0.2510931,130.52,130.49,23.776884]
[1726456435349,0.2510931,130.52,130.49,39.60452932]
[1726456437242,0.2510931,130.52,130.49,23.776884]
[1726456437438,0.2510931,130.52,130.47,20.0]
[1726456438957,0.2510931,130.52,130.48,23.776884]
[1726456441281,0.2510931,130.52,130.5,23.776884]
[1726456447380,0.2510931,130.52,130.5,39.60452932]
[1726456447786,0.2510931,130.52,130.51,39.60452932]
[1726456453586,0.2510931,130.52,130.51,43.776884]
[1726456453969,0.2510931,130.52,130.51,59.60452932]
[1726456459881,0.2510931,130.52,130.51,43.776884]
[1726456464505,0.2510931,130.52,130.44,15.7776]
[1726456464800,0.2510931,130.52,130.47,15.82764532]
[1726456465499,0.2510931,130.52,130.45,30.0]
[1726456465500,0.2510931,130.52,130.48,15.82764532]
[1726456467204,0.2510931,130.52,130.49,23.776884]
[1726456467402,0.2510931,130.52,130.48,23.776884]
[1726456467609,6.5295,130.51,130.48,23.776884]
[1726456467779,6.5295,130.51,130.44,15.7776]
[1726456467985,6.5295,130.51,130.45,15.82764532]
[1726456468202,6.5295,130.51,130.46,15.82764532]
[1726456468405,6.5295,130.51,130.47,15.82764532]
[1726456468912,6.5295,130.51,130.48,23.776884]
[1726456471709,6.5295,130.51,130.47,23.776884]
[1726456472811,6.5295,130.51,130.47,39.60452932]
[1726456473507,6.5295,130.51,130.47,23.776884]
[1726456476320,6.5295,130.51,130.47,39.60452932]
[1726456477395,6.5295,130.51,130.49,23.776884]
[1726456478799,16.2757931,130.52,130.49,23.776884]
[1726456479006,0.2510931,130.52,130.49,23.776884]
[1726456479604,0.2510931,130.52,130.49,39.60452932]
[1726456480009,0.2510931,130.52,130.51,23.776884]
[1726456482216,0.2510931,130.52,130.51,39.60452932]
[1726456483434,0.2510931,130.52,130.51,23.776884]
[1726456483599,0.2510931,130.52,130.49,35.82764532]
[1726456483800,0.2510931,130.52,130.5,15.82764532]
[1726456484116,0.2510931,130.52,130.51,35.82764532]
[1726456485321,0.2510931,130.52,130.51,59.60452932]
[1726456491303,0.2510931,130.52,130.51,43.776884]
[1726456491532,0.2510931,130.52,130.51,59.60452932]
[1726456494327,0.2510931,130.52,130.51,43.776884]
[1726456494519,0.2510931,130.52,130.51,39.60452932]
[1726456496014,0.2510931,130.52,130.51,59.60452932]
[1726456498031,0.2510931,130.52,130.51,43.776884]
[1726456498333,0.2510931,130.52,130.51,59.60452932]
[1726456503256,0.2510931,130.52,130.48,15.6602]
[1726456503459,0.2510931,130.52,130.49,20.0]
[1726456504657,0.2510931,130.52,130.49,15.82764532]
[1726456504860,0.2510931,130.52,130.5,23.776884]
[1726456505050,0.2510931,130.52,130.5,39.60452932]
[1726456505248,0.2510931,130.52,130.51,15.82764532]
[1726456505455,0.2510931,130.52,130.51,59.60452932]
[1726456510560,0.2510931,130.52,130.51,43.776884]
[1726456511780,0.2510931,130.52,130.49,20.0]
[1726456512269,0.2510931,130.52,130.5,20.0]
[1726456512774,0.2510931,130.52,130.48,15.82764532]
[1726456512949,0.2510931,130.52,130.5,23.776884]
[1726456516961,0.2510931,130.52,130.5,39.60452932]
[1726456517155,0.2510931,130.52,130.51,15.82764532]
[1726456517355,0.2510931,130.52,130.51,39.60452932]
[1726456517666,0.2510931,130.52,130.51,59.60452932]
[1726456527291,0.2510931,130.52,130.51,65.95473941]
[1726456530477,0.2510931,130.52,130.51,59.60452932]
[1726456530984,0.2510931,130.52,130.51,65.95457038]
[1726456531483,0.2510931,130.52,130.51,65.95307182]
[1726456533093,0.2510931,130.52,130.51,59.60452932]
[1726456533565,0.2510931,130.52,130.51,65.95207387]
[1726456534973,0.2510931,130.52,130.51,59.60452932]
[1726456535687,0.2510931,130.52,130.51,65.95150055]
[1726456536182,0.2510931,130.52,130.51,72.29901286]
[1726456536695,0.2510931,130.52,130.51,65.95150055]
[1726456536863,0.2510931,130.52,130.51,59.60452932]
[1726456537069,0.2510931,130.52,130.51,65.95201802]
[1726456540470,0.2510931,130.52,130.51,72.29931125]
[1726456540803,0.2510931,130.52,130.51,65.95182255]
[1726456541700,0.2510931,130.52,130.51,59.60452932]
[1726456541993,0.2510931,130.52,130.51,65.9520343]
[1726456542790,0.2510931,130.52,130.51,69.91987536]
[1726456543992,0.2510931,130.52,130.51,72.30242357]
[1726456544294,0.2510931,130.52,130.51,50.12727327]
[1726456544500,0.2510931,130.52,130.51,65.95491859]
[1726456544705,0.2510931,130.52,130.51,30.31938256]
[1726456544886,0.2510931,130.52,130.5,20.0]
[1726456545210,0.2510931,130.52,130.51,23.96956822]
[1726456545579,0.2510931,130.52,130.51,20.0]
[1726456545880,0.2510931,130.52,130.45,6.0518]
[1726456546107,0.2510931,130.52,130.49,15.82764532]
[1726456546401,0.2510931,130.52,130.5,3.96980024]
[1726456546707,0.2510931,130.52,130.49,15.82764532]
[1726456546884,0.2510931,130.52,130.5,3.96994294]
[1726456547085,0.2510931,130.52,130.49,15.82764532]
[1726456547300,0.2510931,130.52,130.51,23.776884]
[1726456548318,0.2510931,130.52,130.44,15.115]
[1726456548612,0.2510931,130.52,130.48,23.776884]
[1726456548818,0.2510931,130.52,130.49,3.96995197]
[1726456549109,0.2510931,130.52,130.48,23.776884]
[1726456549304,0.2510931,130.52,130.5,23.776884]
[1726456549481,0.2510931,130.52,130.49,23.776884]
[1726456550294,0.2510931,130.52,130.48,23.776884]
[1726456551217,0.2510931,130.52,130.48,27.74733961]
[1726456551420,0.2510931,130.52,130.48,23.776884]
[1726456551712,0.2510931,130.52,130.48,27.74733961]
[1726456551890,0.2510931,130.52,130.48,39.60452932]
[1726456552980,0.2510931,130.52,130.48,23.776884]
[1726456553184,0.2510931,130.52,130.48,27.74719765]
[1726456554882,0.2510931,130.52,130.48,43.57484297]
[1726456555111,0.2510931,130.52,130.48,39.60452932]
[1726456555412,0.2510931,130.52,130.48,23.776884]
[1726456555616,0.2510931,130.52,130.47,23.776884]
[1726456555914,0.2510931,130.52,130.49,23.776884]
[1726456556320,0.2510931,130.52,130.48,23.776884]
[1726456557098,0.2510931,130.52,130.48,27.74723723]
[1726456557618,0.2510931,130.52,130.47,23.776884]
[1726456557994,0.2510931,130.52,130.49,23.776884]
[1726456560696,0.2510931,130.52,130.48,23.776884]
[1726456566999,6.3632,130.51,130.45,20.0]
[1726456567200,15.4624,130.5,130.43,15.82764532]
[1726456568508,22.359,130.5,130.45,23.776884]
[1726456568717,22.359,130.5,130.42,15.82764532]
[1726456569223,22.359,130.5,130.4,15.0113]
[1726456569400,22.359,130.5,130.41,15.82764532]
[1726456569726,22.359,130.5,130.42,15.82764532]
[1726456570504,6.4518,130.49,130.39,8.00511575]
[1726456570740,6.4518,130.49,130.4,15.82764532]
[1726456570916,6.4518,130.49,130.41,15.82764532]
[1726456570917,13.3489,130.49,130.41,15.82764532]
[1726456572002,13.3489,130.49,130.43,23.776884]
[1726456574719,6.4518,130.49,130.43,23.776884]
[1726456576138,6.4518,130.49,130.43,39.60452932]
[1726456576525,6.4518,130.49,130.46,39.60452932]
[1726456576728,15.4624,130.5,130.46,39.60452932]
[1726456577940,15.4624,130.5,130.46,23.776884]
[1726456578415,6.7889931,130.52,130.48,23.776884]
[1726456579110,6.7889931,130.52,130.48,39.60452932]
[1726456580837,0.2510931,130.52,130.48,39.60452932]
[1726456582019,0.2510931,130.52,130.48,41.13579249]
[1726456582226,0.2510931,130.52,130.49,37.35808705]
[1726456582554,0.2510931,130.52,130.5,23.776884]
[1726456586928,0.2510931,130.52,130.42,20.0]
[1726456587139,0.2510931,130.52,130.48,43.776884]
[1726456587747,0.2510931,130.52,130.48,23.776884]
[1726456587921,7.1466931,130.52,130.48,23.776884]
[1726456588324,0.2510931,130.52,130.48,23.776884]
[1726456588827,0.2510931,130.52,130.47,23.776884]
[1726456589232,0.2510931,130.52,130.46,23.776884]
[1726456589438,6.2018,130.51,130.45,15.82764532]
[1726456589650,6.2018,130.51,130.44,15.82764532]
[1726456589957,6.8966,130.5,130.42,15.82764532]
[1726456590832,6.8966,130.5,130.41,15.6223]
[1726456590833,13.0979,130.51,130.43,15.82764532]
[1726456591146,13.0979,130.51,130.44,15.82764532]
[1726456591848,13.0979,130.51,130.45,23.776884]
[1726456592222,6.2018,130.51,130.46,15.82764532]
[1726456592731,6.2018,130.51,130.47,23.776884]
[1726456592942,6.2018,130.51,130.47,39.60452932]
[1726456593531,6.2018,130.51,130.48,35.82764532]
[1726456593734,0.2510931,130.52,130.49,23.776884]
[1726456595733,0.2510931,130.52,130.49,39.60452932]
[1726456597746,0.2510931,130.52,130.49,23.776884]
[1726456601153,0.2510931,130.52,130.49,39.60452932]
[1726456603536,0.2510931,130.52,130.51,23.776884]
[1726456604246,0.2510931,130.52,130.5,23.776884]
[1726456604655,0.2510931,130.52,130.51,15.82764532]
[1726456604839,0.2510931,130.52,130.51,59.60452932]
[1726456605452,0.2510931,130.52,130.51,43.776884]
[1726456605766,0.2510931,130.52,130.51,23.776884]
[1726456606258,0.2510931,130.52,130.5,43.776884]
[1726456606937,0.2510931,130.52,130.49,20.0]
[1726456608345,0.2510931,130.52,130.5,23.776884]
[1726456609366,0.2510931,130.52,130.5,39.60452932]
[1726456609861,0.2510931,130.52,130.51,15.82764532]
[1726456610061,0.2510931,130.52,130.51,39.60452932]
[1726456613062,0.2510931,130.52,130.51,59.60452932]
[1726456617878,0.2510931,130.52,130.51,78.78774863]
[1726456620978,0.2510931,130.52,130.51,43.776884]
[1726456621160,0.2510931,130.52,130.51,35.82764532]
[1726456621354,0.2510931,130.52,130.51,39.79645709]
[1726456621583,0.2510931,130.52,130.51,35.82764532]
[1726456621791,0.2510931,130.52,130.51,39.79650797]
[1726456622356,0.2510931,130.52,130.51,63.57339197]
[1726456623386,0.2510931,130.52,130.51,59.60452932]
[1726456623901,0.2510931,130.52,130.51,63.57334241]
[1726456624180,0.2510931,130.52,130.51,59.60452932]
[1726456625089,0.2510931,130.52,130.51,35.82764532]
[1726456625860,0.2510931,130.56,130.52,20.0]
[1726456626074,0.2510931,130.56,130.55,35.82764532]
[1726456627192,0.2510931,130.56,130.53,20.0]
[1726456627374,0.2510931,130.56,130.55,35.82764532]
[1726456628364,0.2510931,130.56,130.55,59.60452932]
[1726456628879,0.2510931,130.6,130.55,59.60452932]
[1726456629085,0.2510931,130.6,130.59,23.776884]
[1726456629776,0.2510931,130.6,130.58,39.60452932]
[1726456630504,0.2510931,130.6,130.59,39.60452932]
[1726456633493,0.2510931,130.6,130.59,59.60452932]
[1726456639995,0.2510931,130.63,130.6,43.776884]
[1726456640176,0.2510931,130.63,130.62,15.82764532]
[1726456640375,0.2510931,130.63,130.62,59.60452932]
[1726456642777,0.2510931,130.63,130.62,43.776884]
[1726456642968,0.2510931,130.63,130.62,20.0]
[1726456643172,0.2510931,130.63,130.61,15.82764532]
[1726456644001,0.2510931,130.63,130.61,20.0]
[1726456644194,0.2510931,130.63,130.61,23.776884]
[1726456644395,0.2510931,130.63,130.54,6.3968]
[1726456644396,0.2510931,130.63,130.58,15.82764532]
[1726456644582,0.2510931,130.63,130.57,15.82764532]
[1726456645780,0.2510931,130.63,130.58,35.82764532]
[1726456646473,0.2510931,130.63,130.59,15.82764532]
[1726456646876,0.2510931,130.63,130.62,15.82764532]
[1726456647697,0.2510931,130.63,130.61,15.82764532]
[1726456647895,0.2510931,130.63,130.61,23.776884]
[1726456648480,0.2510931,130.63,130.6,15.82764532]
[1726456648785,0.2510931,130.63,130.52,15.5179]
[1726456648990,0.2510931,130.63,130.57,15.82764532]
[1726456649192,0.2510931,130.63,130.59,15.82764532]
[1726456649506,0.2510931,130.63,130.58,15.82764532]
[1726456649708,0.2510931,130.63,130.57,15.82764532]
[1726456650028,15.4858,130.61,130.56,15.82764532]
[1726456650306,15.4858,130.61,130.57,15.82764532]
[1726456650480,15.4858,130.61,130.58,15.82764532]
[1726456650686,6.048,130.62,130.58,15.82764532]
[1726456650978,0.2510931,130.63,130.6,15.82764532]
[1726456651179,0.2510931,130.63,130.61,15.82764532]
[1726456653403,0.2510931,130.63,130.62,39.60452932]
[1726456653976,0.2510931,130.63,130.62,23.776884]
[1726456654380,0.2510931,130.63,130.61,43.776884]
[1726456658807,0.2510931,130.63,130.61,20.0]
[1726456661306,0.2510931,130.63,130.62,23.776884]
[1726456661805,0.2510931,130.63,130.61,20.0]
[1726456662201,0.2510931,130.63,130.62,23.776884]
[1726456664291,0.2510931,130.63,130.61,20.0]
[1726456664493,0.2510931,130.63,130.59,20.0]
[1726456665919,0.2510931,130.63,130.62,23.776884]
[1726456676221,0.2510931,130.63,130.62,39.56314581]
[1726456676433,0.2510931,130.63,130.62,23.776884]
[1726456677736,0.2510931,130.63,130.58,35.78626181]
[1726456677931,0.2510931,130.63,130.6,20.0]
[1726456678397,0.2510931,130.63,130.6,35.78626181]
[1726456679299,0.2510931,130.63,130.61,23.776884]
[1726456680929,0.2510931,130.63,130.6,20.0]
[1726456681712,0.2510931,130.63,130.61,20.0]
[1726456682904,0.2510931,130.63,130.6,15.78626181]
[1726456683314,0.2510931,130.63,130.61,23.776884]
[1726456684111,0.2510931,130.63,130.61,39.56314581]
[1726456685129,0.2510931,130.63,130.62,15.78626181]
[1726456685336,0.2510931,130.63,130.62,39.56314581]
[1726456685498,0.2510931,130.63,130.62,23.776884]
[1726456685703,0.2510931,130.63,130.61,23.776884]
[1726456685913,0.2510931,130.63,130.62,3.96466013]
[1726456686134,0.2510931,130.63,130.62,27.74154413]
[1726456686533,0.2510931,130.63,130.62,3.96466013]
[1726456686735,29.4931931,130.63,130.62,3.96466013]
[1726456689547,6.8918,130.59,130.53,6.34732681]
[1726456690025,6.8912,130.6,130.51,31.17936181]
[1726456691135,6.8908,130.61,130.53,39.56314581]
[1726456691329,6.8908,130.61,130.55,23.776884]
[1726456691828,29.4936931,130.63,130.55,23.776884]
[1726456692334,22.6035931,130.63,130.55,39.56314581]
[1726456692632,29.4933931,130.63,130.55,39.56314581]
[1726456694102,6.8902,130.62,130.55,39.56314581]
[1726456694307,6.8902,130.62,130.55,23.776884]
[1726456695030,29.4932931,130.63,130.55,39.56314581]
[1726456695524,29.4932931,130.63,130.55,23.776884]
[1726456696205,6.8904,130.62,130.55,23.776884]
[1726456696603,6.8908,130.61,130.54,20.0]
[1726456697529,6.8913,130.6,130.52,35.78626181]
[1726456698357,6.8913,130.6,130.53,23.776884]
[1726456699216,6.8908,130.61,130.53,39.56314581]
[1726456700334,22.6035931,130.63,130.56,23.776884]
[1726456700634,29.4932931,130.63,130.56,39.56314581]
[1726456701133,29.4932931,130.63,130.56,23.776884]
[1726456702218,6.8903,130.62,130.55,23.776884]
[1726456702433,22.6035931,130.63,130.55,20.0]
[1726456702434,6.8908,130.61,130.55,20.0]
[1726456703520,6.8908,130.61,130.54,23.776884]
[1726456703947,6.8908,130.61,130.54,27.68624053]
[1726456704148,6.8908,130.61,130.54,23.776884]
[1726456704641,22.6035931,130.63,130.57,15.78626181]
[1726456704817,22.6035931,130.63,130.58,39.56314581]
[1726456705019,0.2510931,130.63,130.6,15.78626181]
[1726456705242,0.2510931,130.63,130.61,23.776884]
[1726456705937,0.2510931,130.63,130.61,39.56314581]
[1726456707540,0.2510931,130.63,130.59,20.0]
[1726456707843,0.2510931,130.63,130.59,39.69077228]
[1726456708146,0.2510931,130.63,130.59,35.78626181]
[1726456708442,0.2510931,130.63,130.61,15.78626181]
[1726456708940,0.2510931,130.63,130.62,23.776884]
[1726456709140,0.2510931,130.63,130.62,39.56314581]
[1726456711221,0.2510931,130.63,130.62,43.776884]
[1726456711418,0.2510931,130.63,130.62,61.09305048]
[1726456713147,0.2510931,130.63,130.62,59.56314581]
[1726456714616,0.2510931,130.63,130.62,89.56314581]
[1726456715524,0.2510931,130.63,130.62,50.0]
[1726456715723,0.2510931,130.63,130.58,15.8672]
[1726456715937,0.2510931,130.63,130.59,30.0]
[1726456716452,6.5919931,130.63,130.59,30.0]
[1726456716752,6.5919931,130.63,130.57,15.78626181]
[1726456717050,6.5919931,130.63,130.54,15.8672]
[1726456717051,6.5919931,130.63,130.56,15.78626181]
[1726456717547,6.5919931,130.63,130.54,15.8672]
[1726456717754,6.5919931,130.63,130.56,15.78626181]
[1726456717958,6.5919931,130.63,130.55,30.0]
[1726456718144,6.5919931,130.63,130.54,40.55046386]
[1726456718338,6.5919931,130.63,130.56,20.0]
[1726456718856,6.5919931,130.63,130.57,23.776884]
[1726456722080,0.2510931,130.63,130.6,44.68326386]
[1726456722361,0.2510931,130.63,130.61,23.776884]
[1726456723167,0.2510931,130.63,130.59,23.776884]
[1726456727067,0.2510931,130.63,130.54,15.8672]
[1726456727068,15.6841931,130.63,130.55,43.776884]
[1726456729783,15.6841931,130.63,130.6,24.68326386]
[1726456729784,0.2510931,130.63,130.6,24.68326386]
[1726456729953,0.2510931,130.63,130.61,23.776884]
[1726456730559,0.2510931,130.63,130.61,25.23400053]
[1726456732054,0.2510931,130.63,130.6,23.776884]
[1726456736188,0.2510931,130.63,130.6,25.30800493]
[1726456736357,0.2510931,130.63,130.6,23.776884]
[1726456736557,0.2510931,130.63,130.61,1.53103726]
[1726456736759,0.2510931,130.63,130.6,23.776884]
[1726456737073,0.2510931,130.63,130.62,23.776884]
[1726456737663,0.2510931,130.63,130.62,43.776884]
[1726456740287,0.2510931,130.63,130.59,16.6662]
[1726456740464,0.2510931,130.63,130.57,20.0]
[1726456742770,0.2510931,130.63,130.59,20.0]
[1726456742967,0.2510931,130.63,130.6,23.776884]
[1726456746497,0.2510931,130.63,130.61,20.0]
[1726456746679,0.2510931,130.63,130.62,43.776884]
[1726456746879,0.2510931,130.63,130.56,23.776884]
[1726456747081,0.2510931,130.63,130.59,20.0]
[1726456747485,0.2510931,130.63,130.57,23.776884]
[1726456747993,15.4756,130.64,130.57,23.776884]
[1726456747994,5.7266931,130.64,130.57,23.776884]
[1726456748986,5.7266931,130.64,130.59,23.776884]
[1726456750392,6.5093,130.66,130.59,23.776884]
[1726456751111,6.5093,130.66,130.6,20.0]
[1726456751283,6.5093,130.66,130.61,23.776884]
[1726456752295,6.5093,130.66,130.6,20.0]
[1726456752499,6.5093,130.66,130.62,24.68326386]
[1726456752801,6.5093,130.66,130.62,23.776884]
[1726456753378,6.5093,130.66,130.61,23.776884]
[1726456754804,0.2510931,130.67,130.63,23.776884]
[1726456755387,0.2510931,130.67,130.62,20.0]
[1726456755591,0.2510931,130.67,130.63,23.776884]
[1726456758427,0.2510931,130.67,130.61,20.0]
[1726456759511,0.2510931,130.67,130.62,23.776884]
[1726456759887,7.1386931,130.67,130.61,20.0]
[1726456760094,0.2510931,130.67,130.57,15.4226]
[1726456760391,6.4473,130.66,130.61,15.79064213]
[1726456760594,6.4473,130.66,130.59,15.79064213]
[1726456760927,13.3356,130.66,130.59,15.79064213]
[1726456761206,0.2510931,130.67,130.62,15.79064213]
[1726456761583,0.2510931,130.67,130.6,15.79064213]
[1726456761783,0.2510931,130.67,130.61,23.776884]
[1726456762006,0.2510931,130.67,130.58,48.44499908]
[1726456762431,0.2510931,130.67,130.6,23.776884]
[1726456762846,6.3585,130.66,130.57,15.4226]
[1726456763638,6.8893,130.64,130.54,48.12061659]
[1726456763814,6.8893,130.64,130.55,30.0]
[1726456764314,13.247,130.66,130.56,44.66811508]
[1726456764916,6.8888,130.65,130.56,44.66811508]
[1726456765112,6.8888,130.65,130.57,23.776884]
[1726456765535,6.8888,130.65,130.59,23.776884]
[1726456766206,6.8892,130.64,130.55,20.0]
[1726456766410,6.8886,130.65,130.58,20.0]
[1726456766815,6.8891,130.64,130.58,20.0]
[1726456767012,22.7962,130.63,130.55,20.0]
[1726456767235,6.3271,130.62,130.55,30.0]
[1726456767436,6.8907,130.61,130.55,30.0]
[1726456767613,6.8907,130.61,130.54,0.2510931]
[1726456768310,6.3271,130.62,130.54,0.2510931]
[1726456768516,6.8912,130.6,130.54,0.2510931]
[1726456768819,6.8912,130.6,130.55,3.90763797]
[1726456769434,6.8912,130.6,130.54,4.15873107]
[1726456770140,6.8908,130.61,130.54,24.0279771]
[1726456770316,6.8908,130.61,130.54,27.93561507]
[1726456771041,6.8908,130.61,130.54,24.0279771]
[1726456771349,6.8907,130.61,130.54,24.0279771]
[1726456771641,6.3271,130.62,130.54,27.93561507]
[1726456771830,6.3271,130.62,130.56,48.44499908]
[1726456772236,6.3271,130.62,130.57,3.90668727]
[1726456772615,6.3271,130.62,130.56,27.68357127]
[1726456773016,13.2174,130.62,130.56,27.68357127]
[1726456773425,6.8909,130.61,130.54,0.2510931]
[1726456773628,6.8909,130.61,130.54,24.0279771]
[1726456773842,13.2173,130.62,130.54,27.93500672]
[1726456774048,6.3271,130.62,130.56,23.776884]
[1726456774248,6.3271,130.62,130.56,27.68391362]
[1726456774622,6.3271,130.62,130.56,23.776884]
[1726456775041,6.3271,130.62,130.58,23.776884]
[1726456776336,43.776884,130.69,130.58,24.0279771]
[1726456777420,43.776884,130.69,130.58,30.9200771]
[1726456777421,6.8898,130.63,130.58,30.9200771]
[1726456779245,6.8902,130.62,130.58,0.2510931]
[1726456779453,6.8898,130.63,130.58,7.1432931]
[1726456781523,20.6205,130.65,130.58,0.2510931]
[1726456781847,6.8917,130.6,130.58,0.2510931]
[1726456782151,6.8917,130.59,130.58,0.2510931]
[1726456783951,6.8914,130.6,130.58,0.2510931]
[1726456785359,6.8908,130.61,130.58,0.2510931]
[1726456786354,6.8903,130.62,130.58,0.2510931]
[1726456786736,6.8908,130.61,130.58,0.2510931]
[1726456787151,37.8429,130.65,130.58,0.2510931]
[1726456787339,6.8903,130.62,130.58,0.2510931]
[1726456788789,6.8911,130.61,130.58,0.2510931]
[1726456792160,20.6205,130.65,130.58,0.2510931]
[1726456792343,6.8903,130.62,130.58,7.1432931]
[1726456794159,6.8901,130.63,130.58,7.1432931]
[1726456796153,6.8901,130.63,130.58,23.4207931]
[1726456800873,31.3173,130.68,130.59,15.79628261]
[1726456801048,6.8881,130.66,130.6,15.79628261]
[1726456801361,6.8877,130.67,130.61,15.79628261]
[1726456801666,6.8877,130.67,130.62,32.42148261]
[1726456802041,6.8877,130.67,130.62,16.6252]
[1726456802265,17.2167,130.69,130.62,16.6252]
[1726456802449,6.8906,130.62,130.58,16.9109931]
[1726456802641,6.8906,130.62,130.58,23.8032931]
[1726456803265,6.8892,130.64,130.58,16.9109931]
[1726456803575,6.8892,130.64,130.59,6.8917]
[1726456804073,6.8897,130.63,130.59,6.8917]
[1726456804243,17.2221,130.65,130.58,16.9109931]
[1726456804448,6.8911,130.61,130.58,16.9109931]
[1726456806151,6.8903,130.62,130.58,16.9109931]
[1726456807049,6.8903,130.62,130.58,23.8030931]
[1726456808169,6.8903,130.62,130.58,16.9109931]
[1726456812180,6.8903,130.62,130.58,23.8031931]
[1726456813174,6.8897,130.63,130.59,6.8916]
[1726456813491,6.8903,130.62,130.58,23.8030931]
[1726456814062,6.8898,130.63,130.59,6.8916]
[1726456815080,6.8902,130.62,130.58,23.8031931]
[1726456815466,17.2242,130.63,130.58,16.9109931]
[1726456815666,6.8906,130.62,130.58,16.9109931]
[1726456817067,20.0,130.67,130.58,16.9109931]
[1726456817364,20.5159,130.68,130.58,16.9109931]
[1726456817570,6.8904,130.62,130.58,23.8031931]
[1726456817885,6.8907,130.61,130.58,16.9109931]
[1726456819165,6.8903,130.62,130.58,16.9109931]
[1726456819860,6.8898,130.63,130.58,23.8030931]
[1726456820058,6.8887,130.65,130.6,6.8911]
[1726456820359,6.8892,130.64,130.6,6.8911]
[1726456821094,6.8876,130.67,130.62,6.8901]
[1726456821262,170.3943931,130.69,130.61,23.776884]
[1726456821589,177.2809931,130.69,130.65,6.8886]
[1726456821880,177.2809931,130.69,130.61,30.169084]
[1726456822086,6.8861,130.7,130.63,39.851784]
[1726456822379,6.8861,130.7,130.63,55.63631742]
[1726456822587,6.8861,130.7,130.65,6.8881]
[1726456826163,6.8865,130.69,130.65,6.8881]
[1726456829578,6.8865,130.69,130.63,57.075284]
[1726456829579,6.8865,130.69,130.64,6.889]
[1726456831368,30.336784,130.7,130.63,16.0749]
[1726456832078,6.8877,130.67,130.63,16.0749]
[1726456832275,6.8877,130.67,130.63,22.9643]
[1726456835095,6.8877,130.67,130.63,16.0749]
[1726456835389,6.8883,130.66,130.63,16.0749]
[1726456835566,6.8887,130.65,130.63,16.0749]
[1726456837001,6.8882,130.66,130.63,16.0749]
[1726456837499,30.336784,130.7,130.63,16.0749]
[1726456837500,6.8876,130.67,130.63,16.0749]
[1726456837681,6.8876,130.67,130.63,22.9644]
[1726456838185,6.8871,130.68,130.63,22.9644]
[1726456838696,20.63126918,130.71,130.64,6.889]
[1726456838697,6.8866,130.69,130.64,6.889]
[1726456842405,6.8866,130.69,130.65,6.8885]
[1726456845105,6.8866,130.69,130.64,6.8887]
[1726456845905,6.887,130.68,130.64,6.8887]
[1726456849601,6.8866,130.69,130.64,6.8887]
[1726456849789,0.2510931,130.71,130.66,6.8879]
[1726456850877,0.2510931,130.71,130.67,6.8875]
[1726456851091,0.2510931,130.71,130.68,16.6114]
[1726456854008,6.886,130.7,130.68,16.6114]
[1726456856219,7.1365931,130.71,130.68,16.6114]
[1726456857708,0.2510931,130.71,130.68,16.6114]
[1726456861025,7.1364931,130.71,130.68,16.6114]
[1726456862019,6.8865,130.69,130.65,38.7285]
[1726456862233,0.2510931,130.71,130.65,21.5074]
[1726456862528,6.8879,130.67,130.65,15.3224]
[1726456862900,6.8871,130.68,130.65,15.3224]
[1726456864626,6.8865,130.69,130.65,15.3224]
[1726456868441,6.886,130.7,130.65,22.2109]
[1726456868729,6.886,130.7,130.65,26.11862148]
[1726456869329,6.8866,130.69,130.65,19.23012148]
[1726456869642,6.8872,130.68,130.65,15.3224]
[1726456870309,6.8876,130.67,130.65,15.3224]
[1726456871013,6.8872,130.68,130.65,15.3224]